[Event "Aktobe Open 2022"]
[Site "Aktobe"]
[Date "2022.06.18"]
[Round "7.4"]
[White "Nesterov, Arseniy"]
[Black "Kostenko, Petr"]
[Result "1-0"]
[ECO "A60"]
[WhiteElo "2569"]
[BlackElo "2416"]
[Annotator "TA"]
[PlyCount "135"]
[EventDate "2022.06.14"]
[EventType "swiss"]
[EventCountry "KAZ"]
[SourceTitle "playchess.com"]
[Source "ChessBase"]
[SourceQuality "1"]
[TimeControl "5400+30"]

{[%evp 9,135,29,31,25,34,13,18,0,0,-10,-9,-67,-71,-54,-56,-51,-39,-68,-59,-77,-60,-106,-54,-97,-39,-31,-22,-25,0,-10,0,-26,-21,-72,-44,-41,-41,-41,-41,-41,-50,-45,-11,-14,-15,-26,50,38,96,94,108,0,189,186,178,184,156,52,43,41,135,155,247,247,274,156,139,142,147,146,187,193,241,246,226,252,230,227,232,229,226,204,196,212,190,134,138,139,161,163,186,188,170,201,166,139,128,125,414,407,362,404,424,405,385,407,1247,1227,1114,1018,1870,1408,2018,1917,1727,843,847,819,2345,2031,1966,2053,3934,2620,29979,29979,29989,29990]} 1. d4 {[%emt 0:00:02]} Nf6 {[%emt 0:00:16]} 2. c4 {[%emt 0:00:07]} e6 {[%emt 0:00:10]} 3. g3 {[%emt 0:00:03]} c5 {[%emt 0:01:57]} 4. d5 {[%emt 0:00:20]} exd5 {[%emt 0:00:18]} 5. cxd5 {[%emt 0:00:01]} g6 {[%emt 0:00:11]} 6. Nf3 {[%emt 0:00:08] A60: Modern Benoni: Early Divergences.} Bg7 {[%emt 0:00:20]} 7. Nc3 {[%emt 0:00:29]} O-O {[%emt 0:00:44] The main line 7...0-0 scores better than 7...d6.} 8. d6 $5 {[%emt 0:05:41][%mdl 4] [#] The position is equal. An interesting side line.} Qa5 $146 {[%emt 0:00:14]} ({Predecessor:} 8... b5 9. Bg2 b4 10. Na4 Na6 11. Ne5 Rb8 12. O-O Qe8 13. Nc4 Qe6 14. Qd3 Re8 {1-0 (60) Bocharov,D (2558)-Ponkratov,P (2604) Khanty-Mansiysk 2015}) 9. Nd2 {[%emt 0:04:59] Against Ne4} Qa6 {[%emt 0:01:54]} 10. Nde4 {[%emt 0:06:48]} (10. Bg2 $11) 10... Nxe4 $15 11. Nxe4 {[%emt 0:00:01]} Nc6 {[%emt 0:06:04]} 12. Bg2 {[%emt 0:10:35]} b6 {[%emt 0:00:23]} 13. O-O {[%emt 0:03:07]} Bb7 {[%emt 0:00:10]} 14. Bg5 {[%emt 0:08:14]} Rae8 {[%emt 0:13:06]} 15. Nc3 {[%emt 0:11:43]} (15. Re1 $1 $15) 15... Re6 {[%emt 0:11:40]} (15... Bxc3 $17 16. bxc3 Rxe2) 16. Bd5 {[%emt 0:10:34]} Re5 {[%emt 0:07:59]} ({Black should play} 16... Bxc3 $17 17. Bxe6 Nd4) 17. Bf4 {[%emt 0:03:44]} Ree8 {[%emt 0:00:04]} (17... Rxd5 $5 18. Nxd5 (18. Qxd5 $2 {too greedy.} Nd4 $19) 18... Bxb2 $11) 18. e3 {[%emt 0:07:06]} h6 {[%emt 0:12:21]} 19. h4 {[%emt 0:02:37] Prevents g5.} Nd8 {[%emt 0:00:46]} 20. Qf3 {[%emt 0:01:46]} Kh7 {[%emt 0:01:48]} 21. a4 {[%emt 0:03:46]} (21. Rac1 $11 {remains equal.}) 21... Bxc3 $17 {[%emt 0:01:25]} 22. bxc3 {[%emt 0:00:35]} Bxd5 {[%emt 0:00:22]} 23. Qxd5 {[%emt 0:00:02][%cal Oa4a5]} Qb7 {[%emt 0:00:08]} 24. Qxb7 {[%emt 0:09:40]} Nxb7 {[%emt 0:00:04]} 25. g4 {[%emt 0:01:02]} Re4 {[%emt 0:09:01] White should prevent ...Rc4.} 26. f3 {[%emt 0:00:29]} Rc4 {[%emt 0:00:03]} 27. Ra3 {[%emt 0:00:36]} Nd8 {[%emt 0:00:12]} (27... f5 $11 28. gxf5 Rxf5) 28. Kf2 $1 $14 {[%emt 0:01:10]} Re8 {[%emt 0:06:50]} (28... f5 $14) 29. Bg3 $1 $16 {[%emt 0:04:22]} f5 {[%emt 0:00:24]} 30. Ke2 {[%emt 0:01:43]} (30. gxf5 $16 {Black must now prevent Ke2.} gxf5 31. Ke2) 30... Nc6 $2 {[%emt 0:01:53]} (30... fxg4 $2 31. Kd3 $18) (30... f4 $1 $11 {and Black stays safe.} 31. Kd3 Rb4 32. Bxf4 Rb2) 31. Kd3 $36 {[%emt 0:00:19][%mdl 2048] White is in control.} Na5 {[%emt 0:00:04]} 32. gxf5 {[%emt 0:00:27]} gxf5 {[%emt 0:00:03] [#]} 33. Rb1 {[%emt 0:01:57]} (33. h5 $1 $16) 33... Rg8 $1 $14 {[%emt 0:02:01]} 34. Bf4 {[%emt 0:00:57]} Rxf4 {[%emt 0:00:46]} 35. exf4 {[%emt 0:00:01][%mdl 4096] Endgame Re1 is the strong threat. KRR-KRN} Rg3 {[%emt 0:00:37]} (35... Rg2 $16) 36. Rf1 $18 {[%emt 0:00:44]} Rg2 {[%emt 0:01:56]} 37. Re1 {[%emt 0:01:43]} (37. h5 $18) 37... c4+ $16 {[%emt 0:01:32]} 38. Kd4 {[%emt 0:00:03]} Kg6 {[%emt 0:00:30]} 39. h5+ {[%emt 0:01:00]} Kf6 {[%emt 0:00:33]} 40. Ke3 {[%emt 0:00:25] aiming for Raa1.} Nb3 {[%emt 0:01:14] Against Raa1} (40... Rc2 $142) 41. Re2 $18 {[%emt 0:00:02]} Rg1 {[%emt 0:00:19]} 42. Raa2 {[%emt 0:00:24] And now Rg2 would win.} Nc1 {[%emt 0:07:02]} 43. Rg2 {[%emt 0:00:04]} Re1+ {[%emt 0:00:18]} 44. Kd2 {[%emt 0:00:35]} Rh1 {[%emt 0:00:18] [#]} 45. Rc2 {[%emt 0:00:10]} Nb3+ {[%emt 0:02:22]} 46. Ke3 {[%emt 0:00:02] Hoping for Rg6+.} Rxh5 {[%emt 0:00:27]} 47. Rg1 {[%emt 0:01:00] Prevents Rh1.} (47. Rh2 $18 Rxh2 48. Rxh2) 47... Ke6 $16 {[%emt 0:01:15]} 48. Rd1 {[%emt 0:00:35]} Rh4 {[%emt 0:05:08]} 49. Rg2 {[%emt 0:00:21]} Kf7 {[%emt 0:02:59]} 50. Rdg1 {[%emt 0:00:44] Strongly threatening Rg7+.} Ke6 {[%emt 0:00:16]} 51. Rg6+ {[%emt 0:00:18]} Kd5 {[%emt 0:00:04]} 52. Rd1+ {[%emt 0:00:29]} Kc6 {[%emt 0:00:32]} 53. Rg8 {[%emt 0:00:12] Threatens to win with Rc8+.} Nc5 $2 {[%emt 0:02:34][%mdl 8192] Loses the game.} (53... Kb7 $16 {might work better.} 54. Rd5 Rh1) 54. Rc8+ $18 {[%emt 0:00:10]} Kb7 {[%emt 0:00:03]} 55. Rc7+ {[%emt 0:00:26]} Ka6 {[%emt 0:00:12]} 56. Rd5 {[%emt 0:00:16]} Rh1 {[%emt 0:00:25]} 57. Rxf5 {[%emt 0:00:28]} Rd1 {[%emt 0:00:10]} (57... Re1+ $142 58. Kd2 Re6) 58. Rfxc5 {[%emt 0:01:57]} bxc5 {[%emt 0:00:04]} 59. Rxd7 {[%emt 0:00:03] KR-KR} Re1+ {[%emt 0:03:17]} 60. Kf2 {[%emt 0:00:45]} Re6 {[%emt 0:00:01]} 61. Kg3 {[%emt 0:00:48]} Rg6+ {[%emt 0:00:25]} 62. Kh4 {[%emt 0:00:25]} Kb6 {[%emt 0:00:29]} 63. f5 {[%emt 0:00:54]} Rf6 {[%emt 0:00:14]} 64. Kg4 {[%emt 0:00:48]} Kc6 {[%emt 0:00:06]} 65. Rxa7 {[%emt 0:00:06]} Rf8 {[%emt 0:00:26]} 66. Rh7 {[%emt 0:00:40]} Ra8 {[%emt 0:00:27]} 67. d7 {[%emt 0:00:18]} Kc7 {[%emt 0:00:04]} 68. d8=Q+ {[%emt 0:00:05] Weighted Error Value: White=0.15 (very precise) /Black=0.28 (precise)} 1-0

[Event "Aktobe Open 2022"]
[Site "Aktobe"]
[Date "2022.06.18"]
[Round "7.5"]
[White "Nogerbek, Kazybek"]
[Black "Volkov, Sergey"]
[Result "1/2-1/2"]
[WhiteElo "2424"]
[BlackElo "2510"]
[Annotator "TA"]
[PlyCount "29"]
[EventDate "2022.06.14"]
[EventType "swiss"]
[EventCountry "KAZ"]
[SourceTitle "playchess.com"]
[Source "ChessBase"]
[SourceQuality "1"]
[TimeControl "5400+30"]

{[%evp 11,16,19,37,0,0,2,0]} 1. d4 {[%emt 0:00:08]} d5 {[%emt 0:00:06]} 2. c4 {[%emt 0:00:07]} c6 {[%emt 0:00:06]} 3. cxd5 {[%emt 0:00:06]} cxd5 {[%emt 0:00:06]} 4. Nc3 {[%emt 0:00:06]} Nc6 {[%emt 0:00:13]} 5. Bf4 {[%emt 0:00:08]} Nf6 {[%emt 0:01:16]} 6. e3 {[%emt 0:00:09]} Bg4 {[%emt 0:00:49]} 7. Be2 {[%emt 0:00:39] D10: Slav Defence: 3 cxd5 (without early Nf3) and 3 Nc3.} Bxe2 {[%emt 0:00:09]} 8. Qxe2 {[%emt 0:00:06]} e6 {[%emt 0:00:17] [#] An uneventful encounter.  Weighted Error Value: White=0.15 (very precise) /Black=0.07 (flawless)} {Predecessor:} 9. Nf3 $146 Be7 10. O-O O-O 11. Rfc1 Rc8 12. Ne5 Nxe5 13. Bxe5 Nd7 14. Bg3 Rc6 15. Na4 {½-½ (30) Iturrizaga Bonelli,E (2636)-Dreev,A (2649) Bastia 2018} 1/2-1/2

[Event "Aktobe Open 2022"]
[Site "Aktobe"]
[Date "2022.06.18"]
[Round "7.6"]
[White "Makhnev, Denis"]
[Black "Balmagambetov, Timur"]
[Result "1-0"]
[ECO "A81"]
[WhiteElo "2505"]
[BlackElo "1957"]
[Annotator "TA"]
[PlyCount "149"]
[EventDate "2022.06.14"]
[EventType "swiss"]
[EventCountry "KAZ"]
[SourceTitle "playchess.com"]
[Source "ChessBase"]
[SourceQuality "1"]
[TimeControl "5400+30"]

{[%evp 12,149,11,29,57,39,75,-2,0,-12,0,-8,106,106,104,106,96,99,106,106,106,99,109,111,111,109,113,80,102,100,108,104,108,94,99,101,250,167,294,267,319,318,318,312,335,330,330,242,231,244,237,238,240,225,245,199,199,199,199,199,239,199,199,199,199,199,240,225,214,199,259,246,261,199,200,200,200,200,227,207,255,200,261,200,299,297,296,0,257,200,200,200,200,200,200,200,200,196,196,196,378,196,196,196,200,196,196,196,320,308,556,556,661,654,629,593,547,395,377,377,990,848,667,656,5399,3130,1347,520,5197,544,29968,29972,29972,29973,29969,29972,29974,29975,29996,29997]} 1. d4 {[%emt 0:00:03][%cal Bd2d4,Bd4d5,Bd5e6][%mdl 32]} f5 {[%emt 0:00:12]} 2. g3 {[%emt 0:00:35]} Nf6 {[%emt 0:00:07]} 3. Bg2 {[%emt 0:00:07]} g6 {[%emt 0:00:06]} 4. Nh3 {[%emt 0:00:45]} d6 {[%emt 0:00:09]} 5. Nc3 {[%emt 0:00:07]} Bg7 {[%emt 0:00:51]} 6. d5 {[%emt 0:00:15]} c6 {[%emt 0:00:47]} 7. Nf4 {[%emt 0:00:12]} e5 {[%emt 0:01:55] A81: Dutch Defence: 2 g3.} 8. dxe6 {[%emt 0:00:08]} O-O {[%emt 0:00:09]} 9. O-O {[%emt 0:11:50] White is more active.} ({White should try} 9. h4 $1 $16) 9... d5 $11 {[%emt 0:03:38] The position is equal.} 10. Be3 {[%emt 0:06:03] [#]} Qe7 $146 {[%emt 0:03:50]} ({Predecessor:} 10... Re8 11. h4 Na6 12. Na4 Bxe6 13. Nc5 Nxc5 14. Bxc5 Bf7 15. Bd4 Qd6 16. Nd3 b6 {0-1 (29) Velichko,A (2147)-Babarykin,S (2331) Moscow 2017}) 11. Bd4 {[%emt 0:00:49][%cal Ob2b4]} Bxe6 {[%emt 0:01:17] [#]} (11... Na6 $11) 12. Bc5 $1 $16 {[%emt 0:01:57][%mdl 512]} Qxc5 {[%emt 0:01:06]} (12... Qe8 13. Bxf8) 13. Nxe6 {[%emt 0:00:07]} Qe7 {[%emt 0:00:21]} 14. Nxf8 {[%emt 0:00:07]} Kxf8 {[%emt 0:00:10]} 15. e3 {[%emt 0:01:37]} Nbd7 {[%emt 0:00:08]} 16. Ne2 {[%emt 0:01:18]} Kg8 {[%emt 0:01:25]} 17. c4 {[%emt 0:04:12]} dxc4 {[%emt 0:00:35]} 18. Qc2 {[%emt 0:00:24]} Nb6 {[%emt 0:01:37]} 19. Nc3 {[%emt 0:03:07]} Nfd7 {[%emt 0:04:37]} 20. Rfd1 {[%emt 0:01:01]} Ne5 {[%emt 0:02:51]} 21. Rab1 {[%emt 0:00:30]} Rb8 {[%emt 0:03:11]} 22. b3 {[%emt 0:02:30]} cxb3 {[%emt 0:03:41]} 23. Qxb3+ {[%emt 0:00:55]} Kf8 {[%emt 0:02:24]} (23... Qf7 $16 24. Na4 Qxb3 25. axb3 Ned7) 24. Ne2 {[%emt 0:03:54]} Nbd7 {[%emt 0:05:14]} (24... Nec4 $142 25. Nf4 Na5 26. Ne6+ Kg8) 25. Nd4 $18 {[%emt 0:02:53]} Bf6 {[%emt 0:01:46]} 26. Ne6+ {[%emt 0:04:26]} Kf7 {[%emt 0:00:47]} 27. Nc5+ {[%emt 0:00:36]} Kg7 {[%emt 0:00:10]} 28. Nxd7 {[%emt 0:00:06]} (28. Nxb7 Nb6 $18) 28... Nxd7 {[%emt 0:00:04] [#]} 29. Bxc6 $1 {[%emt 0:00:06][%mdl 512]} Nc5 {[%emt 0:00:51]} (29... bxc6 $2 30. Rxd7 $1 {[%mdl 512]} Rxb3 31. Rxe7+ Bxe7 32. axb3 $18) 30. Qa3 {[%emt 0:00:17]} b6 {[%emt 0:00:09]} 31. Bf3 {[%emt 0:00:25]} Rc8 {[%emt 0:00:25]} 32. Rbc1 {[%emt 0:00:11]} Rc7 {[%emt 0:00:05]} 33. Kg2 {[%emt 0:00:07]} Be5 {[%emt 0:06:33]} 34. Qb4 {[%emt 0:00:43]} Qf6 {[%emt 0:01:24]} 35. Rd5 {[%emt 0:01:47]} Re7 {[%emt 0:00:57]} 36. Rcd1 {[%emt 0:01:11]} Bc7 {[%emt 0:00:11]} 37. h4 {[%emt 0:00:08]} h5 {[%emt 0:00:10]} 38. Qd4 {[%emt 0:01:05]} Be5 {[%emt 0:00:28]} 39. Qc4 {[%emt 0:00:06]} Bc7 {[%emt 0:00:04]} 40. R5d2 {[%emt 0:00:03]} Kh7 {[%emt 0:00:45]} (40... Qf7 $142 41. Qxf7+ Kxf7 42. Bd5+ Kg7) 41. Re2 {[%emt 0:02:35]} Kg7 {[%emt 0:06:18]} 42. Qd4 {[%emt 0:04:53]} Be5 {[%emt 0:01:41]} 43. Qd8 {[%emt 0:00:09]} Bc7 {[%emt 0:00:09]} 44. Qa8 {[%emt 0:00:14]} a5 {[%emt 0:00:05]} 45. Bd5 {[%emt 0:02:09]} Kh6 {[%emt 0:03:23]} 46. Red2 {[%emt 0:00:41]} Rh7 {[%emt 0:04:59]} 47. Qc6 {[%emt 0:07:28]} Qe5 {[%emt 0:02:47]} (47... Qxc6 {keeps fighting.} 48. Bxc6 Re7) 48. Bf3 {[%emt 0:00:58] Rd5 is the strong threat.} Qe7 {[%emt 0:01:56] [#]} 49. Bd5 $2 {[%emt 0:13:02]} (49. Rd6 $1 $18 {[%mdl 512]} Bxd6 50. Rxd6) 49... Rg7 {[%emt 0:02:20][%mdl 8192]} (49... Qe5 $1 $11 {and Black stays safe.} 50. Rd4 Re7) 50. Bc4 {[%emt 0:00:35][%cal Bd5c4,Bc4b5,Bb5d3][%mdl 32]} Kh7 {[%emt 0:00:07]} 51. Qa8 {[%emt 0:00:30]} Qf6 {[%emt 0:00:41]} 52. Rd4 {[%emt 0:00:44]} Re7 {[%emt 0:00:52]} 53. Qg8+ {[%emt 0:00:50]} Kh6 {[%emt 0:00:06]} 54. Bb5 {[%emt 0:06:07]} Rf7 {[%emt 0:05:22]} 55. Qc8 {[%emt 0:00:33]} Kg7 $2 {[%emt 0:01:05]} (55... Qg7 56. Qe8 Qf6) 56. Kg1 {[%emt 0:04:27]} ({Not} 56. Bc4 Re7 57. Qg8+ Kh6 $18) (56. f4 $142) 56... Re7 {[%emt 0:02:55]} 57. Qa8 {[%emt 0:05:55]} Kh7 {[%emt 0:01:15]} 58. Qc6 {[%emt 0:00:12]} Qe5 {[%emt 0:00:44]} 59. Bd3 {[%emt 0:01:09]} Rf7 {[%emt 0:01:11]} (59... Qe6 {was necessary.} 60. Bb5 Kh6 61. Qxe6 Rxe6) 60. Bc2 {[%emt 0:01:29]} Kg7 $2 {[%emt 0:01:13]} (60... Qg7 61. Bb3 Re7) 61. Bb3 {[%emt 0:00:38]} Re7 {[%emt 0:01:15] [#]} 62. Rd6 $1 {[%emt 0:02:15][%mdl 512]} Bxd6 {[%emt 0:01:03]} 63. Rxd6 {[%emt 0:00:04]} Nxb3 {[%emt 0:00:12]} 64. axb3 {[%emt 0:00:04][%mdl 4096] Endgame KQR-KQR} Kf7 {[%emt 0:00:07]} (64... Qa1+ $2 65. Kg2 Qe5 66. Rxg6+ Kf7 67. Rh6 Qe4+ 68. Qxe4 Rxe4 69. Rxb6) 65. Qxb6 {[%emt 0:00:12]} f4 $2 {[%emt 0:05:26]} (65... Re6 66. Qc7+ Kf6 67. Qd8+ Kf7) 66. exf4 {[%emt 0:00:33]} Qf5 {[%emt 0:00:04]} 67. Qd4 {[%emt 0:01:19] And now Qh8 would win.} Rb7 {[%emt 0:02:44]} 68. Kh2 {[%emt 0:00:50]} Re7 {[%emt 0:04:15]} 69. Rd5 {[%emt 0:00:52]} (69. Qh8 $142 {Threatening mate with Qh7+.} Re2 70. Qh7+ Ke8 71. Qg8+ Ke7 72. Qd8+ Kf7 73. Rd7+ Qxd7 74. Qxd7+ Kf8 75. Qd3) 69... Qc2 {[%emt 0:01:25]} (69... Qe4 $142 70. Qxe4 Rxe4 71. Rxa5 Rb4) 70. Rxa5 {[%emt 0:00:04]} (70. f5 $142 a4 71. fxg6+ Qxg6 72. Qf4+ Ke8 73. Qxa4+ Kf8 74. Qf4+ Ke8 75. Rf5) 70... Qxb3 {[%emt 0:00:04]} 71. f5 {[%emt 0:00:05] White mates.} Qf3 {[%emt 0:00:10]} 72. fxg6+ {[%emt 0:00:40]} Kxg6 {[%emt 0:00:02]} 73. Rg5+ {[%emt 0:00:46]} Kh7 {[%emt 0:00:01]} 74. Qc5 {[%emt 0:00:07][%csl LRe7,LRh5]} Kh6 {[%emt 0:03:49]} 75. Qd6+ {[%emt 0:00:05] Weighted Error Value: White=0.22 (precise) /Black=0.39} 1-0

[Event "Aktobe Open 2022"]
[Site "Aktobe"]
[Date "2022.06.18"]
[Round "7.7"]
[White "Kekelidze, Mikheil"]
[Black "Urazayev, Arystanbek"]
[Result "1/2-1/2"]
[ECO "E73"]
[WhiteElo "2388"]
[BlackElo "2445"]
[Annotator "TA"]
[PlyCount "126"]
[EventDate "2022.06.14"]
[EventType "swiss"]
[EventCountry "KAZ"]
[SourceTitle "playchess.com"]
[Source "ChessBase"]
[SourceQuality "1"]
[TimeControl "5400+30"]

{[%evp 16,126,-25,-41,-16,-61,-32,-107,-16,-39,-33,-23,0,-25,0,0,35,0,0,0,77,-44,27,27,77,83,70,78,75,94,108,101,108,108,108,108,108,108,108,108,108,108,108,108,108,108,108,0,108,108,108,108,108,108,108,108,108,116,177,171,160,170,352,343,362,353,333,188,130,126,137,114,152,3,3,3,3,3,8,0,0,0,0,0,0,0,20,20,20,20,43,8,8,0,0,0,0,0,0,0,0,0,0,0,0,0,0,0,0,0,0,0,0]} 1. d4 {[%emt 0:00:03]} Nf6 {[%emt 0:00:57]} 2. c4 {[%emt 0:00:07]} g6 {[%emt 0:00:07]} 3. Nc3 {[%emt 0:00:13]} Bg7 {[%emt 0:00:05]} 4. e4 {[%emt 0:00:09]} d6 {[%emt 0:00:05]} 5. Be2 {[%emt 0:03:27]} O-O {[%emt 0:00:07]} 6. g4 {[%emt 0:06:17]} c5 {[%emt 0:01:39]} 7. d5 {[%emt 0:00:11]} e6 {[%emt 0:00:35]} 8. g5 {[%emt 0:00:32]} Ne8 {[%emt 0:00:32]} 9. h4 {[%emt 0:00:40]} exd5 {[%emt 0:00:20] E73: King's Indian: Averbakh Variation without 6...c5.} 10. exd5 {[%emt 0:02:10]} Bf5 {[%emt 0:01:43]} (10... Bxc3+ $5 11. bxc3 Bf5 $15) 11. Bd3 {[%emt 0:02:49]} (11. Qd2 $15) 11... Qd7 {[%emt 0:10:10] [#]} (11... Bxc3+ $17 12. bxc3 Ng7) 12. Qc2 $146 {[%emt 0:10:35]} ({Predecessor:} 12. Bxf5 Qxf5 13. Qf3 Qd7 14. Qh3 f6 15. Nge2 fxg5 16. hxg5 Qxh3 17. Rxh3 Nd7 18. Be3 {1-0 (43) Toulzac,P (2240)-Jaureguiberry,C Creon 1997}) 12... Bxd3 {[%emt 0:00:58]} 13. Qxd3 {[%emt 0:00:11]} a6 {[%emt 0:01:29]} 14. a4 {[%emt 0:06:42]} Nc7 {[%emt 0:00:43][%cal Ob7b5]} (14... Bxc3+ $5 15. bxc3 Ng7 $15) 15. a5 {[%emt 0:03:15] Active counter play!} Qg4 {[%emt 0:02:12] Prevents Bf4.} ({Much less strong is} 15... Bd4 16. Bf4 $16) (15... Bxc3+ $5 16. Qxc3 Qf5 $15) 16. Nge2 {[%emt 0:06:23] Bf4 is the strong threat.} Nd7 {[%emt 0:02:56] aiming for ...Ne5.} 17. Qh3 {[%emt 0:09:43]} f5 {[%emt 0:14:56]} (17... Bxc3+ $11 18. Nxc3 Rae8+ 19. Be3 f5 20. Qxg4 fxg4) 18. f4 {[%emt 0:08:24]} ({White should try} 18. Bf4 $16) 18... Qxh3 {[%emt 0:00:28]} (18... b5 $15 19. axb6 Nxb6) 19. Rxh3 $11 {[%emt 0:00:06]} b5 {[%emt 0:00:19] [#]} (19... Rfe8 $11 {keeps the balance.}) 20. axb6 $1 $16 {[%emt 0:00:20]} Nxb6 {[%emt 0:00:06]} 21. b3 {[%emt 0:00:43]} Rfb8 {[%emt 0:09:08]} 22. Ra3 {[%emt 0:02:14]} Rb7 {[%emt 0:00:10]} 23. Kd1 {[%emt 0:00:57]} Kf7 {[%emt 0:00:38]} 24. h5 {[%emt 0:01:56][%cal Bh4h5,Bh5h6][%mdl 32]} Nd7 {[%emt 0:01:13]} 25. h6 {[%emt 0:00:29]} Bh8 {[%emt 0:00:57]} 26. Bd2 {[%emt 0:00:31]} Re8 {[%emt 0:07:51]} 27. Kc2 {[%emt 0:01:02]} Nb8 {[%emt 0:00:44]} 28. Re3 {[%emt 0:03:37]} Rxe3 {[%emt 0:00:37]} 29. Bxe3 {[%emt 0:00:04]} Nd7 {[%emt 0:00:41]} 30. Nc1 {[%emt 0:00:53]} Rb8 {[%emt 0:00:24]} 31. N1e2 {[%emt 0:04:54]} (31. Nd1 $16) 31... Ke7 {[%emt 0:01:02]} (31... Rb7 $1 $11) 32. Bd2 {[%emt 0:05:59]} Nb6 {[%emt 0:01:02]} 33. Nd1 {[%emt 0:00:52]} Kd7 {[%emt 0:00:43]} 34. Kd3 {[%emt 0:01:09]} Ke7 {[%emt 0:01:59]} 35. Ne3 {[%emt 0:00:28]} Nd7 {[%emt 0:00:35]} 36. Ng3 {[%emt 0:00:45]} Rf8 {[%emt 0:05:02]} (36... Nb6 $16 37. Ba5 Ne8) 37. Ba5 $18 {[%emt 0:00:30]} Na8 {[%emt 0:00:17]} 38. Ra2 {[%emt 0:00:38]} Nb8 $2 {[%emt 0:02:08]} (38... Kf7 39. Bd2 Rb8) 39. b4 {[%emt 0:02:11]} cxb4 {[%emt 0:07:52]} 40. Bxb4 {[%emt 0:00:16]} Kd7 {[%emt 0:00:16]} 41. c5 {[%emt 0:00:44]} (41. Ba5 $142) 41... dxc5 {[%emt 0:00:06]} 42. Bxc5 {[%emt 0:00:05]} Rc8 {[%emt 0:00:12]} 43. Ba7 {[%emt 0:05:21]} Nc7 {[%emt 0:01:48]} 44. Ra5 {[%emt 0:01:03]} (44. Ne2 $16) 44... Nb5 $11 {[%emt 0:02:40]} 45. Bxb8 {[%emt 0:00:44]} Rxb8 {[%emt 0:00:06]} 46. Rxa6 {[%emt 0:00:32]} Nc7 $1 {[%emt 0:00:06]} 47. Ra3 {[%emt 0:02:02] Against Rb3+} Bb2 {[%emt 0:00:31]} 48. Ra4 {[%emt 0:00:39]} Rb3+ {[%emt 0:01:11]} 49. Ke2 {[%emt 0:01:07]} Nb5 {[%emt 0:01:25] And now ...Nc3+ would win.} 50. Ra8 {[%emt 0:01:55]} Bd4 {[%emt 0:01:50] [#]} 51. Ngxf5 {[%emt 0:00:53]} gxf5 {[%emt 0:06:36]} 52. Nxf5 {[%emt 0:00:26] Black must now prevent Rf8.} Bb2 {[%emt 0:00:50]} 53. Rf8 {[%emt 0:00:42] Hoping for Rf7+.} (53. Rg8 $5 {[%cal Rg8g7]} Nc7 {[#]} 54. Rg7+ $1 {[%mdl 512]} Bxg7 55. hxg7 $16) 53... Nd6 {[%emt 0:03:18] Inhibits Rf7+. The position is equal.} 54. Nxd6 {[%emt 0:01:41]} Kxd6 {[%emt 0:00:02][%mdl 4096] Endgame KRB-KR} 55. f5 {[%emt 0:03:04]} Kxd5 {[%emt 0:03:07]} 56. f6 {[%emt 0:02:35]} Rg3 {[%emt 0:02:34]} 57. Rb8 {[%emt 0:01:36]} Bxf6 {[%emt 0:03:42]} 58. gxf6 {[%emt 0:00:11] f7 would kill now. KR-KR} Ke6 {[%emt 0:00:03]} 59. Rb7 {[%emt 0:00:42] Threatening mate with f7.} Kxf6 {[%emt 0:00:10]} 60. Rxh7 {[%emt 0:00:04]} Rh3 {[%emt 0:00:07]} 61. Rh8 {[%emt 0:00:08]} Kg6 {[%emt 0:00:09]} 62. Kf2 {[%emt 0:00:03]} Rxh6 {[%emt 0:00:04]} 63. Rxh6+ {[%emt 0:00:03]} Kxh6 {[%emt 0:07:37] Blacks defense is rewarded with a draw.  Weighted Error Value: White=0.21 (precise) /Black=0.22 (precise)} 1/2-1/2

[Event "Aktobe Open 2022"]
[Site "Aktobe"]
[Date "2022.06.18"]
[Round "7.8"]
[White "Katenov, Aibek"]
[Black "Moisseyenko, Ilya"]
[Result "0-1"]
[ECO "D10"]
[WhiteElo "2161"]
[BlackElo "2291"]
[Annotator "NA RC"]
[PlyCount "74"]
[EventDate "2022.06.14"]
[EventType "swiss"]
[EventCountry "KAZ"]
[SourceTitle "playchess.com"]
[Source "ChessBase"]
[SourceQuality "1"]
[TimeControl "5400+30"]

1. d4 {[%emt 0:04:23]} d5 {[%emt 0:00:06]} 2. c4 {[%emt 0:00:32]} c6 {[%emt 0:00:05]} 3. cxd5 {[%emt 0:00:45]} cxd5 {[%emt 0:00:01]} 4. Bf4 {[%emt 0:00:04]} Nf6 {[%emt 0:00:19]} 5. Nc3 {[%emt 0:00:05]} Nc6 {[%emt 0:00:08]} 6. e3 {[%emt 0:00:03]} a6 {[%emt 0:00:02]} 7. Be2 {[%emt 0:01:23]} e6 {[%emt 0:03:05]} 8. Nf3 {[%emt 0:01:23]} Bd6 {[%emt 0:00:08]} 9. Bg3 {[%emt 0:06:51]} O-O {[%emt 0:00:11]} 10. O-O {[%emt 0:03:09]} Bxg3 {[%emt 0:00:38]} 11. hxg3 {[%emt 0:00:04]} Bd7 {[%emt 0:02:45]} 12. Bd3 {[%emt 0:18:38]} Rc8 {[%emt 0:02:28]} 13. Qe2 {[%emt 0:03:21]} Qe7 {[%emt 0:04:33]} 14. Rfc1 {[%emt 0:11:40]} Rc7 $11 {[%emt 0:05:56]} 15. Ne5 {[%emt 0:08:30]} Rfc8 {[%emt 0:01:07]} 16. Nxc6 {[%emt 0:04:18]} Bxc6 {[%emt 0:01:41]} 17. Rc2 {[%emt 0:02:37]} e5 {[%emt 0:11:06]} 18. dxe5 {[%emt 0:00:45]} Qxe5 {[%emt 0:00:04]} 19. Qd2 {[%emt 0:01:17]} Rd7 {[%emt 0:16:56]} 20. Ne2 {[%emt 0:07:39]} Ng4 {[%emt 0:02:27]} 21. Nd4 {[%emt 0:11:26]} Qh5 {[%emt 0:21:03]} 22. Bf5 {[%emt 0:00:01]} Qh2+ {[%emt 0:01:59]} 23. Kf1 {[%emt 0:00:01]} Ne5 {[%emt 0:06:03]} 24. Nxc6 {[%emt 0:02:25]} Rxc6 {[%emt 0:01:07]} 25. Rxc6 {[%emt 0:07:59]} bxc6 {[%emt 0:00:20]} 26. Rc1 {[%emt 0:01:17]} Rd8 {[%emt 0:04:41]} 27. Bh3 {[%emt 0:00:22]} g5 {[%emt 0:00:40]} 28. Ke2 {[%emt 0:01:05]} Re8 {[%emt 0:02:26]} 29. Qd4 {[%emt 0:01:40]} h5 {[%emt 0:00:17]} 30. Rxc6 {[%emt 0:01:12]} Nxc6 {[%emt 0:02:12]} 31. Qf6 {[%emt 0:00:01]} Ne5 {[%emt 0:00:52]} 32. Qxg5+ {[%emt 0:01:34]} Ng6 {[%emt 0:00:27]} 33. Bd7 {[%emt 0:00:00]} Re5 {[%emt 0:02:01]} 34. Qd8+ {[%emt 0:00:04]} Kg7 {[%emt 0:00:26]} 35. Bh3 {[%emt 0:00:02]} Qg1 {[%emt 0:00:20]} 36. Qc7 {[%emt 0:00:05]} d4 {[%emt 0:00:48]} 37. Qc1 {[%emt 0:00:53]} Qxc1 {[%emt 0:00:08]} 0-1